{"text_format":"1","workbook":"xlsx","n_sheets":2,"sheets":["Summary","Data"],"not_rendered":{"charts":0,"images":0,"macros":1,"external_links":0,"defined_names":0,"comments":0,"pivot_tables":0},"unopened":[],"bounds":{"document_bytes":16777216,"sheet_cells":100000,"rows_first":2000,"rows_last":500,"rows_between":2000,"halvings":0,"cell_chars":16384,"cell_head_chars":4096},"cells_cut":0,"cells_raw":0,"read":"whole","date_system":"1900"}

{"sheet":"Summary","index":0,"n_rows":387,"n_cols":14,"rows_kept":387,"cut":false,"hidden":false,"merged":[[25,0,30,0],[1,1,2,2],[13,0,15,0],[10,0,12,0],[7,0,9,0],[1,0,3,0],[4,0,6,0],[16,0,18,0],[19,0,21,0],[22,0,24,0]]}
["README",null,null,"No","ID","Overall",null,"Domain 1","Domain 2","Domain 3","Domain 4","Domain 5","Domain 6","Domain 7"]
["1. The  tool is developed based on RoBINS-I-V2, available from https://www.riskofbias.info/welcome/robins-i-v2.","Click the button to see the RoB form"]
[]
[]
["2. Unfortunately it is not compatible with Mac operating system."]
[]
[]
["3. To pre-fill a box, e.g. confounding factors, put down a No. and fill in the corresponding column in the Data sheet "]
[]
[]
["4. Always enter a No., otherwise it won't be saved; it is the unique identification number for each study in this file"]
[]
[]
["5. ID provides an additional ID system if needed, e.g. RedCap ID, Covidence ID"]
[]
[]
["6. To change the order of a record in the form,  go to the Data sheet, cut the entire row of that record and place it in the positon you want."]
[]
[]
["7. The form is linked to the Data sheet, if you change the value in the Data sheet, your forms will change as well."]
[]
[]
["8. If you identify any bugs or issues, or  have suggestions, feel free to contact me via email or on https://github.com/xintongxh/ROBINS-Itool."]
[]
[]
["Citation: Huang, XT, Automatic tool for Risk of Bias In Non-randomised Studies of Interventions (ROBINS-I), 2025. National Drug and Alcohol Research Centre (NDARC), University of New South Wales, Australia. Available from: https://www.unsw.edu.au/research/ndarc/resources/risk_of_bias_tool"]
[]
[]
[]
[]
[]
[]
[]
[]
[]
[]
[]
[]
[]
[]
[]
[]
[]
[]
[]
[]
[]
[]
[]
[]
[]
[]
[]
[]
[]
[]
[]
[]
[]
[]
[]
[]
[]
[]
[]
[]
[]
[]
[]
[]
[]
[]
[]
[]
[]
[]
[]
[]
[]
[]
[]
[]
[]
[]
[]
[]
[]
[]
[]
[]
[]
[]
[]
[]
[]
[]
[]
[]
[]
[]
[]
[]
[]
[]
[]
[]
[]
[]
[]
[]
[]
[]
[]
[]
[]
[]
[]
[]
[]
[]
[]
[]
[]
[]
[]
[]
[]
[]
[]
[]
[]
[]
[]
[]
[]
[]
[]
[]
[]
[]
[]
[]
[]
[]
[]
[]
[]
[]
[]
[]
[]
[]
[]
[]
[]
[]
[]
[]
[]
[]
[]
[]
[]
[]
[]
[]
[]
[]
[]
[]
[]
[]
[]
[]
[]
[]
[]
[]
[]
[]
[]
[]
[]
[]
[]
[]
[]
[]
[]
[]
[]
[]
[]
[]
[]
[]
[]
[]
[]
[]
[]
[]
[]
[]
[]
[]
[]
[]
[]
[]
[]
[]
[]
[]
[]
[]
[]
[]
[]
[]
[]
[]
[]
[]
[]
[]
[]
[]
[]
[]
[]
[]
[]
[]
[]
[]
[]
[]
[]
[]
[]
[]
[]
[]
[]
[]
[]
[]
[]
[]
[]
[]
[]
[]
[]
[]
[]
[]
[]
[]
[]
[]
[]
[]
[]
[]
[]
[]
[]
[]
[]
[]
[]
[]
[]
[]
[]
[]
[]
[]
[]
[]
[]
[]
[]
[]
[]
[]
[]
[]
[]
[]
[]
[]
[]
[]
[]
[]
[]
[]
[]
[]
[]
[]
[]
[]
[]
[]
[]
[]
[]
[]
[]
[]
[]
[]
[]
[]
[]
[]
[]
[]
[]
[]
[]
[]
[]
[]
[]
[]
[]
[]
[]
[]
[]
[]
[]
[]
[]
[]
[]
[]
[]
[]
[]
[]
[]
[]
[]
[]
[]
[]
[]
[]
[]
[]
[]
[]
[]
[]
[]
[]
[]
[]
[]
[]
[]
[]
[]
[]
[]
[]
[]
[]
[]
[]
[]
[null,null,null,{"$f":"TRIM(Data!B381)","v":""},{"$f":"TRIM(Data!C381)","v":""},{"$f":"TRIM(Data!DJ381)","v":""},null,{"$f":"TRIM(Data!AF381)","v":""},null,null,{"$f":"TRIM(Data!BW381)","v":""},{"$f":"TRIM(Data!CT381)","v":""},{"$f":"TRIM(Data!DA381)","v":""},{"$f":"TRIM(Data!DH381)","v":""}]
[null,null,null,{"$f":"TRIM(Data!B382)","v":""},{"$f":"TRIM(Data!C382)","v":""},{"$f":"TRIM(Data!DJ382)","v":""},null,{"$f":"TRIM(Data!AF382)","v":""},null,null,{"$f":"TRIM(Data!BW382)","v":""},{"$f":"TRIM(Data!CT382)","v":""},{"$f":"TRIM(Data!DA382)","v":""},{"$f":"TRIM(Data!DH382)","v":""}]
[null,null,null,{"$f":"TRIM(Data!B383)","v":""},{"$f":"TRIM(Data!C383)","v":""},{"$f":"TRIM(Data!DJ383)","v":""},null,{"$f":"TRIM(Data!AF383)","v":""},null,null,{"$f":"TRIM(Data!BW383)","v":""},{"$f":"TRIM(Data!CT383)","v":""},{"$f":"TRIM(Data!DA383)","v":""},{"$f":"TRIM(Data!DH383)","v":""}]
[null,null,null,{"$f":"TRIM(Data!B384)","v":""},{"$f":"TRIM(Data!C384)","v":""},{"$f":"TRIM(Data!DJ384)","v":""},null,{"$f":"TRIM(Data!AF384)","v":""},null,null,{"$f":"TRIM(Data!BW384)","v":""},{"$f":"TRIM(Data!CT384)","v":""},{"$f":"TRIM(Data!DA384)","v":""},{"$f":"TRIM(Data!DH384)","v":""}]
[null,null,null,{"$f":"TRIM(Data!B385)","v":""},{"$f":"TRIM(Data!C385)","v":""},{"$f":"TRIM(Data!DJ385)","v":""},null,{"$f":"TRIM(Data!AF385)","v":""},null,null,{"$f":"TRIM(Data!BW385)","v":""},{"$f":"TRIM(Data!CT385)","v":""},{"$f":"TRIM(Data!DA385)","v":""},{"$f":"TRIM(Data!DH385)","v":""}]
[null,null,null,{"$f":"TRIM(Data!B386)","v":""},{"$f":"TRIM(Data!C386)","v":""},{"$f":"TRIM(Data!DJ386)","v":""},null,{"$f":"TRIM(Data!AF386)","v":""},null,null,{"$f":"TRIM(Data!BW386)","v":""},{"$f":"TRIM(Data!CT386)","v":""},{"$f":"TRIM(Data!DA386)","v":""},{"$f":"TRIM(Data!DH386)","v":""}]
[null,null,null,{"$f":"TRIM(Data!B387)","v":""},{"$f":"TRIM(Data!C387)","v":""},{"$f":"TRIM(Data!DJ387)","v":""},null,{"$f":"TRIM(Data!AF387)","v":""},null,null,{"$f":"TRIM(Data!BW387)","v":""},{"$f":"TRIM(Data!CT387)","v":""},{"$f":"TRIM(Data!DA387)","v":""},{"$f":"TRIM(Data!DH387)","v":""}]
[null,null,null,{"$f":"TRIM(Data!B388)","v":""},{"$f":"TRIM(Data!C388)","v":""},{"$f":"TRIM(Data!DJ388)","v":""},null,{"$f":"TRIM(Data!AF388)","v":""},null,null,{"$f":"TRIM(Data!BW388)","v":""},{"$f":"TRIM(Data!CT388)","v":""},{"$f":"TRIM(Data!DA388)","v":""},{"$f":"TRIM(Data!DH388)","v":""}]
[null,null,null,{"$f":"TRIM(Data!B389)","v":""},{"$f":"TRIM(Data!C389)","v":""},{"$f":"TRIM(Data!DJ389)","v":""},null,{"$f":"TRIM(Data!AF389)","v":""},null,null,{"$f":"TRIM(Data!BW389)","v":""},{"$f":"TRIM(Data!CT389)","v":""},{"$f":"TRIM(Data!DA389)","v":""},{"$f":"TRIM(Data!DH389)","v":""}]
[null,null,null,{"$f":"TRIM(Data!B390)","v":""},{"$f":"TRIM(Data!C390)","v":""},{"$f":"TRIM(Data!DJ390)","v":""},null,{"$f":"TRIM(Data!AF390)","v":""},null,null,{"$f":"TRIM(Data!BW390)","v":""},{"$f":"TRIM(Data!CT390)","v":""},{"$f":"TRIM(Data!DA390)","v":""},{"$f":"TRIM(Data!DH390)","v":""}]

{"sheet":"Data","index":1,"n_rows":1,"n_cols":253,"rows_kept":1,"cut":false,"hidden":false,"merged":[]}
["Time","No","ID","Assessor","Confounding factors","Numerical results","Details on numerical results","Outcomes","Participant group","B1","B1 notes","B2","B2 notes","B3","B3 notes","Proceed with RoB? (Y/N)","C2","C2 notes","C3","C3 notes","Variant (A/B)",1.1000000000000001,"1.1 notes",1.2,"1.2 notes",1.3,"1.3 notes",1.4,"1.4 notes",1.5,"1.5 notes","Domain 1 RoB",2.1,"2.1 notes",2.2000000000000002,"2.2 notes",2.2999999999999998,"2.3 notes",2.4,"2.4 notes",2.5,"2.5 notes","Domain 2 RoB",3.1,"3.1 notes",3.2,"3.2 notes",3.3,"3.3 notes",3.4,"3.4 notes",3.5,"3.5 notes",3.6,"3.6 notes",3.7,"3.7  notes",3.8,"3.8  notes",3.9,"3.9  notes",3.1,"3.10  notes","Domain 3 RoB",4.0999999999999996,"4.1 notes",4.2,"4.2 notes",4.3,"4.3 notes",4.4000000000000004,"4.4 notes",4.5,"4.5 notes","Domain 4 RoB",5.0999999999999996,"5.1 notes",5.2,"5.2 notes",5.3,"5.3 notes",5.4,"5.4 notes",5.5,"5.5 notes",5.6,"5.6 notes",5.7,"5.7  notes",5.8,"5.8  notes",5.9,"5.9  notes",5.0999999999999996,"5.10  notes",5.1100000000000003,"5.11 notes","Domain 5 RoB",6.1,"6.1 notes",6.2,"6.2 notes",6.3,"6.3 notes","Domain 6 RoB",7.1,"7.1 notes",7.2,7.3,7.4,"7 notes","Domain 7 RoB","Overall RoB by Algorithm","Assessor's decision on RoB","Notes on RoB judgement","General notes","Predicted direction of bias","Effect of interest","Changes that will (and not) be considered to be deviations from protocol",1,2,3,4,"Intervention strategy","Comparator strategy","Eligible criteria","Factor","Variables measured for this factor","Was the variables controlled for?","Was the factor measured validly and reliably by the variables?      OR     Is there evidence that controlling for it was unnecessary?","Predicted direction of bias","Notes","Factor","Variables measured for this factor","Was the variables controlled for?","Was the factor measured validly and reliably by the variables?      OR     Is there evidence that controlling for it was unnecessary?","Predicted direction of bias","Notes","Factor","Variables measured for this factor","Was the variables controlled for?","Was the factor measured validly and reliably by the variables?      OR     Is there evidence that controlling for it was unnecessary?","Predicted direction of bias","Notes","Factor","Variables measured for this factor","Was the variables controlled for?","Was the factor measured validly and reliably by the variables?      OR     Is there evidence that controlling for it was unnecessary?","Predicted direction of bias","Notes","Factor","Variables measured for this factor","Was the variables controlled for?","Was the factor measured validly and reliably by the variables?      OR     Is there evidence that controlling for it was unnecessary?","Predicted direction of bias","Notes","Factor","Variables measured for this factor","Was the variables controlled for?","Was the factor measured validly and reliably by the variables?      OR     Is there evidence that controlling for it was unnecessary?","Predicted direction of bias","Notes","Factor","Variables measured for this factor","Was the variables controlled for?","Was the factor measured validly and reliably by the variables?      OR     Is there evidence that controlling for it was unnecessary?","Predicted direction of bias","Notes","Factor","Variables measured for this factor","Was the variables controlled for?","Was the factor measured validly and reliably by the variables?      OR     Is there evidence that controlling for it was unnecessary?","Predicted direction of bias","Notes","Factor","Variables measured for this factor","Was the variables controlled for?","Was the factor measured validly and reliably by the variables?      OR     Is there evidence that controlling for it was unnecessary?","Predicted direction of bias","Notes","Factor","Variables measured for this factor","Was the variables controlled for?","Was the factor measured validly and reliably by the variables?      OR     Is there evidence that controlling for it was unnecessary?","Predicted direction of bias","Notes","Domain 1 ROB_assessor's decision","Domain 2 ROB_assessor's decision","Domain 3 ROB_assessor's decision","Domain 4 ROB_assessor's decision","Domain 5 ROB_assessor's decision","Domain 6 ROB_assessor's decision","Domain 7 ROB_assessor's decision","Factor","Variables measured for this factor","Was the variables controlled for?","Was the factor measured validly and reliably by the variables?      OR     Is there evidence that controlling for it was unnecessary?","Predicted direction of bias","Notes","Factor","Variables measured for this factor","Was the variables controlled for?","Was the factor measured validly and reliably by the variables?      OR     Is there evidence that controlling for it was unnecessary?","Predicted direction of bias","Notes","Factor","Variables measured for this factor","Was the variables controlled for?","Was the factor measured validly and reliably by the variables?      OR     Is there evidence that controlling for it was unnecessary?","Predicted direction of bias","Notes","Factor","Variables measured for this factor","Was the variables controlled for?","Was the factor measured validly and reliably by the variables?      OR     Is there evidence that controlling for it was unnecessary?","Predicted direction of bias","Notes","Factor","Variables measured for this factor","Was the variables controlled for?","Was the factor measured validly and reliably by the variables?      OR     Is there evidence that controlling for it was unnecessary?","Predicted direction of bias","Notes","Factor","Variables measured for this factor","Was the variables controlled for?","Was the factor measured validly and reliably by the variables?      OR     Is there evidence that controlling for it was unnecessary?","Predicted direction of bias","Notes","Factor","Variables measured for this factor","Was the variables controlled for?","Was the factor measured validly and reliably by the variables?      OR     Is there evidence that controlling for it was unnecessary?","Predicted direction of bias","Notes","Factor","Variables measured for this factor","Was the variables controlled for?","Was the factor measured validly and reliably by the variables?      OR     Is there evidence that controlling for it was unnecessary?","Predicted direction of bias","Notes","Factor","Variables measured for this factor","Was the variables controlled for?","Was the factor measured validly and reliably by the variables?      OR     Is there evidence that controlling for it was unnecessary?","Predicted direction of bias","Notes","Factor","Variables measured for this factor","Was the variables controlled for?","Was the factor measured validly and reliably by the variables?      OR     Is there evidence that controlling for it was unnecessary?","Predicted direction of bias","Notes"]